[Event "Titled Tuesday Blitz August 22 Late 2023"]
[White "Kupervaser, Erez"]
[Black "Boor, Carl"]
[WhiteFideId "2814587"]
[BlackFideId "2017008"]
[WhiteElo "2432"]
[BlackElo "2560"]
[Result "0-1"]
[Round "5"]
[TimeControl "180+1"]
[Date "2023.08.22"]
[WhiteClock "0:00:03"]
[BlackClock "0:00:12"]
[Board "103"]

1. e4 {[%clk 0:03:00]}  e5 {[%clk 0:02:54]} 2. Nf3 {[%clk 0:03:00]}  Nf6 {[%clk 0:02:54]} 3. Nxe5 {[%clk 0:03:00]}  d6 {[%clk 0:02:54]} 4. Nf3 {[%clk 0:03:01]}  Nxe4 {[%clk 0:02:54]} 5. d4 {[%clk 0:03:00]}  d5 {[%clk 0:02:54]} 6. Bd3 {[%clk 0:02:59]}  Be7 {[%clk 0:02:54]} 7. O-O {[%clk 0:02:59]}  Bf5 {[%clk 0:02:54]} 8. c4 {[%clk 0:02:56]}  O-O {[%clk 0:02:53]} 9. Re1 {[%clk 0:02:55]}  Nc6 {[%clk 0:02:44]} 10. Nc3 {[%clk 0:02:33]}  Nxc3 {[%clk 0:02:37]} 11. bxc3 {[%clk 0:02:34]}  Bxd3 {[%clk 0:02:26]} 12. Qxd3 {[%clk 0:02:35]}  b6 {[%clk 0:02:21]} 13. cxd5 {[%clk 0:02:31]}  Qxd5 {[%clk 0:02:20]} 14. c4 {[%clk 0:02:31]}  Qd7 {[%clk 0:02:20]} 15. Bb2 {[%clk 0:01:48]}  Bf6 {[%clk 0:02:17]} 16. Rad1 {[%clk 0:01:45]}  Rfe8 {[%clk 0:02:16]} 17. Rxe8+ {[%clk 0:01:41]}  Rxe8 {[%clk 0:02:14]} 18. h3 {[%clk 0:01:42]}  g6 {[%clk 0:02:05]} 19. Bc1 {[%clk 0:01:30]}  Na5 {[%clk 0:01:53]} 20. c5 {[%clk 0:01:08]}  Qa4 {[%clk 0:01:30]} 21. Bf4 {[%clk 0:01:03]}  bxc5 {[%clk 0:01:16]} 22. Bxc7 {[%clk 0:01:03]}  c4 {[%clk 0:01:02]} 23. Qb1 {[%clk 0:00:47]}  Rc8 {[%clk 0:00:40]} 24. Bxa5 {[%clk 0:00:28]}  Qxa5 {[%clk 0:00:38]} 25. Qb7 {[%clk 0:00:27]}  Qc7 {[%clk 0:00:36]} 26. Qxc7 {[%clk 0:00:20]}  Rxc7 {[%clk 0:00:36]} 27. Rc1 {[%clk 0:00:21]}  Kf8 {[%clk 0:00:34]} 28. Kf1 {[%clk 0:00:21]}  Ke7 {[%clk 0:00:33]} 29. Ke2 {[%clk 0:00:22]}  Kd6 {[%clk 0:00:33]} 30. Nd2 {[%clk 0:00:21]}  Kd5 {[%clk 0:00:32]} 31. Nf3 {[%clk 0:00:19]}  Rb7 {[%clk 0:00:29]} 32. Rc2 {[%clk 0:00:19]}  a5 {[%clk 0:00:27]} 33. Kd2 {[%clk 0:00:19]}  a4 {[%clk 0:00:27]} 34. Kc3 {[%clk 0:00:19]}  a3 {[%clk 0:00:25]} 35. Re2 {[%clk 0:00:19]}  Rb1 {[%clk 0:00:21]} 36. Ne5 {[%clk 0:00:19]}  Rc1+ {[%clk 0:00:21]} 37. Kd2 {[%clk 0:00:19]}  Ra1 {[%clk 0:00:20]} 38. Kc3 {[%clk 0:00:19]}  Rd1 {[%clk 0:00:18]} 39. Nf3 {[%clk 0:00:04]}  Rd3+ {[%clk 0:00:18]} 40. Kc2 {[%clk 0:00:04]}  Bxd4 {[%clk 0:00:18]} 41. Nxd4 {[%clk 0:00:04]}  Kxd4 {[%clk 0:00:18]} 42. Re7 {[%clk 0:00:05]}  f5 {[%clk 0:00:15]} 43. Rd7+ {[%clk 0:00:05]}  Ke4 {[%clk 0:00:14]} 44. f3+ {[%clk 0:00:06]}  Ke3 {[%clk 0:00:14]} 45. Rxh7 {[%clk 0:00:06]}  Kf2 {[%clk 0:00:13]} 46. Rg7 {[%clk 0:00:06]}  Kxg2 {[%clk 0:00:13]} 47. Rxg6+ {[%clk 0:00:06]}  Kxf3 {[%clk 0:00:14]} 48. Rf6 {[%clk 0:00:06]}  Kf4 {[%clk 0:00:14]} 49. Rc6 {[%clk 0:00:06]}  Rxh3 {[%clk 0:00:13]} 50. Rxc4+ {[%clk 0:00:06]}  Kg5 {[%clk 0:00:13]} 51. Rc5 {[%clk 0:00:05]}  Kg4 {[%clk 0:00:13]} 52. Rc8 {[%clk 0:00:05]}  f4 {[%clk 0:00:13]} 53. Rg8+ {[%clk 0:00:06]}  Kf3 {[%clk 0:00:13]} 54. Kb3 {[%clk 0:00:07]}  Kf2+ {[%clk 0:00:13]} 55. Kb4 {[%clk 0:00:07]}  Re3 {[%clk 0:00:12]} 56. Rf8 {[%clk 0:00:07]}  f3 {[%clk 0:00:12]} 57. Rf4 {[%clk 0:00:06]}  Ke2 {[%clk 0:00:12]} 58. Kc4 {[%clk 0:00:06]}  f2 {[%clk 0:00:12]} 59. Kd4 {[%clk 0:00:06]}  Rf3 {[%clk 0:00:12]} 60. Re4+ {[%clk 0:00:03]}  Kd2 {[%clk 0:00:12]} 0-1


[Site "https://www.chess.com"]

[Event "Titled Tuesday Blitz August 22 Late 2023"]
[White "Titichoca Daza, Daniel"]
[Black "brm72"]
[WhiteFideId "3309550"]
[WhiteElo "2430"]
[BlackElo "2559"]
[Result "1-0"]
[Round "5"]
[TimeControl "180+1"]
[Date "2023.08.22"]
[WhiteClock "0:00:11"]
[BlackClock "0:00:00"]
[Board "104"]

1. Nf3 {[%clk 0:03:00]}  c5 {[%clk 0:02:59]} 2. g3 {[%clk 0:02:59]}  Nc6 {[%clk 0:03:00]} 3. Bg2 {[%clk 0:03:00]}  g6 {[%clk 0:03:00]} 4. O-O {[%clk 0:03:01]}  Bg7 {[%clk 0:03:00]} 5. c4 {[%clk 0:03:02]}  e5 {[%clk 0:03:00]} 6. d3 {[%clk 0:03:02]}  Nge7 {[%clk 0:03:00]} 7. Nc3 {[%clk 0:02:59]}  d6 {[%clk 0:03:00]} 8. Rb1 {[%clk 0:02:59]}  O-O {[%clk 0:02:58]} 9. a3 {[%clk 0:03:00]}  a5 {[%clk 0:02:58]} 10. Ne1 {[%clk 0:03:00]}  Be6 {[%clk 0:02:57]} 11. Nc2 {[%clk 0:03:00]}  d5 {[%clk 0:02:55]} 12. cxd5 {[%clk 0:03:00]}  Nxd5 {[%clk 0:02:56]} 13. Ne3 {[%clk 0:02:59]}  Nde7 {[%clk 0:02:55]} 14. Nc4 {[%clk 0:02:53]}  b6 {[%clk 0:02:42]} 15. Nb5 {[%clk 0:02:24]}  Rb8 {[%clk 0:02:24]} 16. f4 {[%clk 0:02:15]}  Nd4 {[%clk 0:02:14]} 17. Nxd4 {[%clk 0:02:09]}  exd4 {[%clk 0:02:15]} 18. a4 {[%clk 0:02:08]}  Bd5 {[%clk 0:02:07]} 19. Bf3 {[%clk 0:01:20]}  f5 {[%clk 0:01:57]} 20. Bd2 {[%clk 0:01:19]}  Kh8 {[%clk 0:01:56]} 21. Re1 {[%clk 0:01:15]}  Re8 {[%clk 0:01:56]} 22. Qb3 {[%clk 0:01:14]}  h6 {[%clk 0:01:11]} 23. Qb5 {[%clk 0:01:06]}  Kh7 {[%clk 0:01:00]} 24. Kf2 {[%clk 0:00:55]}  Qc7 {[%clk 0:00:37]} 25. h4 {[%clk 0:00:49]}  h5 {[%clk 0:00:36]} 26. Na3 {[%clk 0:00:35]}  Bc6 {[%clk 0:00:28]} 27. Qb3 {[%clk 0:00:34]}  Qd7 {[%clk 0:00:26]} 28. Nb5 {[%clk 0:00:34]}  Ng8 {[%clk 0:00:21]} 29. Rbc1 {[%clk 0:00:26]}  Rbc8 {[%clk 0:00:21]} 30. Qc4 {[%clk 0:00:22]}  Nf6 {[%clk 0:00:20]} 31. b3 {[%clk 0:00:22]}  Ng4+ {[%clk 0:00:20]} 32. Kg2 {[%clk 0:00:20]}  Ne3+ {[%clk 0:00:19]} 33. Bxe3 {[%clk 0:00:20]}  Rxe3 {[%clk 0:00:20]} 34. Kf2 {[%clk 0:00:20]}  Rce8 {[%clk 0:00:19]} 35. Na3 {[%clk 0:00:16]}  R8e6 {[%clk 0:00:15]} 36. Nc2 {[%clk 0:00:16]}  Bxf3 {[%clk 0:00:06]} 37. exf3 {[%clk 0:00:17]}  Rxe1 {[%clk 0:00:05]} 38. Rxe1 {[%clk 0:00:17]}  Rxe1 {[%clk 0:00:06]} 39. Nxe1 {[%clk 0:00:16]}  Qe7 {[%clk 0:00:05]} 40. Nc2 {[%clk 0:00:17]}  Bf8 {[%clk 0:00:04]} 41. Qd5 {[%clk 0:00:17]}  Qd6 {[%clk 0:00:03]} 42. Qb7+ {[%clk 0:00:14]}  Kh6 {[%clk 0:00:02]} 43. Na3 {[%clk 0:00:13]}  Qe6 {[%clk 0:00:02]} 44. Nc4 {[%clk 0:00:14]}  Bg7 {[%clk 0:00:01]} 45. Qxb6 {[%clk 0:00:13]}  Qe8 {[%clk 0:00:01]} 46. Qxc5 {[%clk 0:00:13]}  Qb8 {[%clk 0:00:01]} 47. Qb5 {[%clk 0:00:12]}  Qd8 {[%clk 0:00:02]} 48. Qxa5 {[%clk 0:00:12]}  Qf8 {[%clk 0:00:02]} 49. Qb5 {[%clk 0:00:12]}  Qc8 {[%clk 0:00:01]} 50. a5 {[%clk 0:00:13]}  Qd8 {[%clk 0:00:01]} 51. a6 {[%clk 0:00:13]}  Qa8 {[%clk 0:00:02]} 52. Qb7 {[%clk 0:00:12]}  Qf8 {[%clk 0:00:02]} 53. a7 {[%clk 0:00:12]}  Qc5 {[%clk 0:00:02]} 54. a8=Q {[%clk 0:00:12]}  Qa5 {[%clk 0:00:00]} 55. Qxa5 {[%clk 0:00:11]} 1-0


[Site "https://www.chess.com"]

[Event "Titled Tuesday Blitz August 22 Late 2023"]
[White "reevecanada"]
[Black "Yang, Kevin"]
[BlackFideId "30908485"]
[WhiteElo "2549"]
[BlackElo "2416"]
[Result "0-1"]
[Round "5"]
[TimeControl "180+1"]
[Date "2023.08.22"]
[WhiteClock "0:00:54"]
[BlackClock "0:00:28"]
[Board "109"]

1. e4 {[%clk 0:03:00]}  e6 {[%clk 0:02:58]} 2. Nf3 {[%clk 0:03:00]}  a6 {[%clk 0:02:58]} 3. Nc3 {[%clk 0:03:00]}  d5 {[%clk 0:02:58]} 4. d4 {[%clk 0:02:53]}  Nf6 {[%clk 0:02:57]} 5. e5 {[%clk 0:02:52]}  Nfd7 {[%clk 0:02:55]} 6. Bg5 {[%clk 0:02:50]}  Be7 {[%clk 0:02:54]} 7. Bxe7 {[%clk 0:02:50]}  Qxe7 {[%clk 0:02:55]} 8. Ne2 {[%clk 0:02:50]}  O-O {[%clk 0:02:53]} 9. c3 {[%clk 0:02:51]}  f6 {[%clk 0:02:52]} 10. Ng3 {[%clk 0:02:48]}  fxe5 {[%clk 0:02:49]} 11. dxe5 {[%clk 0:02:49]}  c5 {[%clk 0:02:47]} 12. Bd3 {[%clk 0:02:48]}  Nc6 {[%clk 0:02:46]} 13. Qe2 {[%clk 0:02:48]}  b5 {[%clk 0:02:36]} 14. a4 {[%clk 0:02:47]}  c4 {[%clk 0:02:31]} 15. Bc2 {[%clk 0:02:45]}  b4 {[%clk 0:02:29]} 16. O-O {[%clk 0:02:45]}  a5 {[%clk 0:02:27]} 17. b3 {[%clk 0:02:40]}  cxb3 {[%clk 0:02:23]} 18. Bxb3 {[%clk 0:02:39]}  Ba6 {[%clk 0:01:56]} 19. c4 {[%clk 0:02:36]}  Rxf3 {[%clk 0:01:54]} 20. Qxf3 {[%clk 0:02:23]}  Nd4 {[%clk 0:01:53]} 21. Qe3 {[%clk 0:02:08]}  Nxb3 {[%clk 0:01:52]} 22. Qxb3 {[%clk 0:02:09]}  Bxc4 {[%clk 0:01:49]} 23. Qe3 {[%clk 0:02:09]}  Bxf1 {[%clk 0:01:47]} 24. Rxf1 {[%clk 0:02:10]}  Qc5 {[%clk 0:01:45]} 25. Qg5 {[%clk 0:02:08]}  h6 {[%clk 0:01:34]} 26. Qg6 {[%clk 0:02:04]}  Qe7 {[%clk 0:01:27]} 27. f4 {[%clk 0:02:02]}  Rf8 {[%clk 0:01:21]} 28. Nh5 {[%clk 0:01:48]}  Nxe5 {[%clk 0:01:11]} 29. Qg3 {[%clk 0:01:31]}  Nc4 {[%clk 0:01:00]} 30. Re1 {[%clk 0:01:25]}  Qf7 {[%clk 0:00:49]} 31. Qg4 {[%clk 0:01:22]}  e5 {[%clk 0:00:41]} 32. f5 {[%clk 0:01:18]}  Kh7 {[%clk 0:00:35]} 33. Rf1 {[%clk 0:01:16]}  Ne3 {[%clk 0:00:33]} 34. Qg6+ {[%clk 0:01:13]}  Qxg6 {[%clk 0:00:33]} 35. fxg6+ {[%clk 0:01:13]}  Kg8 {[%clk 0:00:33]} 36. Re1 {[%clk 0:01:12]}  d4 {[%clk 0:00:32]} 37. Rc1 {[%clk 0:01:10]}  b3 {[%clk 0:00:30]} 38. h3 {[%clk 0:00:58]}  b2 {[%clk 0:00:30]} 39. Rb1 {[%clk 0:00:54]}  Rf1+ {[%clk 0:00:28]} 0-1


[Site "https://www.chess.com"]

[Event "Titled Tuesday Blitz August 22 Late 2023"]
[White "Nurgaliyeva, Zarina"]
[Black "laidfrq"]
[WhiteFideId "13730096"]
[WhiteElo "2538"]
[BlackElo "2406"]
[Result "0-1"]
[Round "5"]
[TimeControl "180+1"]
[Date "2023.08.22"]
[WhiteClock "0:00:03"]
[BlackClock "0:01:18"]
[Board "112"]

1. e4 {[%clk 0:03:00]}  c5 {[%clk 0:02:55]} 2. Nf3 {[%clk 0:02:55]}  e6 {[%clk 0:02:55]} 3. g3 {[%clk 0:02:53]}  Nc6 {[%clk 0:02:54]} 4. Bg2 {[%clk 0:02:50]}  Nf6 {[%clk 0:02:50]} 5. Qe2 {[%clk 0:02:49]}  Be7 {[%clk 0:02:49]} 6. O-O {[%clk 0:02:44]}  d5 {[%clk 0:02:49]} 7. exd5 {[%clk 0:02:37]}  exd5 {[%clk 0:02:48]} 8. d4 {[%clk 0:02:08]}  O-O {[%clk 0:02:20]} 9. dxc5 {[%clk 0:02:04]}  Re8 {[%clk 0:02:20]} 10. Nbd2 {[%clk 0:01:56]}  Bxc5 {[%clk 0:02:18]} 11. Qd1 {[%clk 0:01:54]}  Bg4 {[%clk 0:02:16]} 12. Nb3 {[%clk 0:01:51]}  Bb6 {[%clk 0:02:14]} 13. h3 {[%clk 0:01:49]}  Bxf3 {[%clk 0:02:09]} 14. Bxf3 {[%clk 0:01:46]}  Ne4 {[%clk 0:02:02]} 15. Kg2 {[%clk 0:01:41]}  Ne5 {[%clk 0:01:58]} 16. Bf4 {[%clk 0:01:29]}  Qf6 {[%clk 0:01:55]} 17. Bxe5 {[%clk 0:01:17]}  Qxe5 {[%clk 0:01:53]} 18. Qe2 {[%clk 0:00:18]}  Qxb2 {[%clk 0:01:40]} 19. Rae1 {[%clk 0:00:07]}  Rac8 {[%clk 0:01:32]} 20. Bxe4 {[%clk 0:00:03]}  dxe4 {[%clk 0:01:29]} 21. Rc1 {[%clk 0:00:02]}  e3 {[%clk 0:01:28]} 22. f3 {[%clk 0:00:02]}  Qxa2 {[%clk 0:01:25]} 23. Rfd1 {[%clk 0:00:03]}  Qa4 {[%clk 0:01:22]} 24. Rd3 {[%clk 0:00:03]}  Qc4 {[%clk 0:01:21]} 25. Rcd1 {[%clk 0:00:02]}  Qxc2 {[%clk 0:01:20]} 26. Kf1 {[%clk 0:00:02]}  Qxe2+ {[%clk 0:01:19]} 27. Kxe2 {[%clk 0:00:02]}  Rc2+ {[%clk 0:01:20]} 28. Ke1 {[%clk 0:00:03]}  e2 {[%clk 0:01:18]} 29. Rb1 {[%clk 0:00:03]}  Bf2+ {[%clk 0:01:18]} 30. Kxf2 {[%clk 0:00:03]}  e1=Q# {[%clk 0:01:18]} 0-1


[Site "https://www.chess.com"]

[Event "Titled Tuesday Blitz August 22 Late 2023"]
[White "Lima, Kleyton Alcantara"]
[Black "Senft, Sean"]
[WhiteFideId "22718397"]
[BlackFideId "2044960"]
[WhiteElo "2522"]
[BlackElo "2352"]
[Result "1-0"]
[Round "5"]
[TimeControl "180+1"]
[Date "2023.08.22"]
[WhiteClock "0:00:43"]
[BlackClock "0:00:00"]
[Board "120"]

1. d4 {[%clk 0:03:00]}  d5 {[%clk 0:03:00]} 2. c4 {[%clk 0:03:01]}  c6 {[%clk 0:02:59]} 3. Nf3 {[%clk 0:03:00]}  Nf6 {[%clk 0:03:00]} 4. e3 {[%clk 0:03:01]}  e6 {[%clk 0:02:57]} 5. b3 {[%clk 0:03:01]}  Bb4+ {[%clk 0:02:42]} 6. Nbd2 {[%clk 0:02:56]}  Nbd7 {[%clk 0:02:37]} 7. Bd3 {[%clk 0:02:56]}  Ne4 {[%clk 0:02:35]} 8. O-O {[%clk 0:02:52]}  Ndf6 {[%clk 0:02:35]} 9. Qc2 {[%clk 0:02:50]}  Nxd2 {[%clk 0:02:28]} 10. Nxd2 {[%clk 0:02:51]}  O-O {[%clk 0:02:28]} 11. Bb2 {[%clk 0:02:48]}  b6 {[%clk 0:02:19]} 12. a3 {[%clk 0:02:47]}  Bd6 {[%clk 0:02:15]} 13. e4 {[%clk 0:02:44]}  dxe4 {[%clk 0:01:59]} 14. Nxe4 {[%clk 0:02:43]}  h6 {[%clk 0:01:50]} 15. Rad1 {[%clk 0:02:25]}  Nxe4 {[%clk 0:01:43]} 16. Bxe4 {[%clk 0:02:25]}  Bb7 {[%clk 0:01:43]} 17. Rfe1 {[%clk 0:02:25]}  Qc7 {[%clk 0:01:36]} 18. h3 {[%clk 0:02:24]}  c5 {[%clk 0:01:35]} 19. d5 {[%clk 0:02:24]}  exd5 {[%clk 0:01:34]} 20. Bxd5 {[%clk 0:02:24]}  Bxd5 {[%clk 0:01:32]} 21. Rxd5 {[%clk 0:02:24]}  Rfe8 {[%clk 0:01:27]} 22. Red1 {[%clk 0:02:23]}  Rad8 {[%clk 0:01:18]} 23. Qc3 {[%clk 0:02:19]}  f6 {[%clk 0:01:15]} 24. Qf3 {[%clk 0:02:18]}  Bh2+ {[%clk 0:00:53]} 25. Kh1 {[%clk 0:02:17]}  Rxd5 {[%clk 0:00:51]} 26. Qxd5+ {[%clk 0:02:13]}  Kh8 {[%clk 0:00:47]} 27. Qf3 {[%clk 0:02:12]}  Be5 {[%clk 0:00:41]} 28. Bxe5 {[%clk 0:02:01]}  Rxe5 {[%clk 0:00:37]} 29. g3 {[%clk 0:02:00]}  Qe7 {[%clk 0:00:34]} 30. Kg2 {[%clk 0:01:56]}  Re1 {[%clk 0:00:31]} 31. Rd2 {[%clk 0:01:51]}  Kg8 {[%clk 0:00:14]} 32. h4 {[%clk 0:01:50]}  Ra1 {[%clk 0:00:09]} 33. Re2 {[%clk 0:01:50]}  Qd7 {[%clk 0:00:08]} 34. h5 {[%clk 0:01:44]}  Rxa3 {[%clk 0:00:03]} 35. Qa8+ {[%clk 0:01:44]}  Kf7 {[%clk 0:00:03]} 36. Re3 {[%clk 0:01:39]}  Ra1 {[%clk 0:00:02]} 37. Qe4 {[%clk 0:01:31]}  Rd1 {[%clk 0:00:03]} 38. Qg6+ {[%clk 0:01:30]}  Kf8 {[%clk 0:00:03]} 39. Qh7 {[%clk 0:01:31]}  Qb7+ {[%clk 0:00:02]} 40. f3 {[%clk 0:01:28]}  Rd2+ {[%clk 0:00:02]} 41. Kh3 {[%clk 0:01:25]}  Qd7+ {[%clk 0:00:02]} 42. g4 {[%clk 0:01:25]}  Rd1 {[%clk 0:00:01]} 43. Re2 {[%clk 0:01:14]}  Rd2 {[%clk 0:00:01]} 44. Re1 {[%clk 0:00:52]}  Rd1 {[%clk 0:00:02]} 45. Re3 {[%clk 0:00:44]}  Rd3 {[%clk 0:00:00]} 46. Qxd3 {[%clk 0:00:43]} 1-0


[Site "https://www.chess.com"]

[Event "Titled Tuesday Blitz August 22 Late 2023"]
[White "Garcia-Castany Musellas, Gal.la"]
[Black "ATM622"]
[WhiteFideId "2241803"]
[WhiteElo "2275"]
[BlackElo "2520"]
[Result "0-1"]
[Round "5"]
[TimeControl "180+1"]
[Date "2023.08.22"]
[WhiteClock "0:00:00"]
[BlackClock "0:00:14"]
[Board "125"]

1. Nf3 {[%clk 0:02:53]}  Nf6 {[%clk 0:02:58]} 2. b3 {[%clk 0:02:53]}  g6 {[%clk 0:02:58]} 3. Bb2 {[%clk 0:02:54]}  Bg7 {[%clk 0:02:59]} 4. e4 {[%clk 0:02:51]}  d6 {[%clk 0:02:57]} 5. d3 {[%clk 0:02:51]}  O-O {[%clk 0:02:56]} 6. Nbd2 {[%clk 0:02:51]}  b6 {[%clk 0:02:56]} 7. Qc1 {[%clk 0:02:48]}  Bb7 {[%clk 0:02:56]} 8. Be2 {[%clk 0:02:48]}  Nbd7 {[%clk 0:02:54]} 9. O-O {[%clk 0:02:48]}  c5 {[%clk 0:02:48]} 10. Re1 {[%clk 0:02:48]}  e6 {[%clk 0:02:46]} 11. Bf1 {[%clk 0:02:47]}  Qc7 {[%clk 0:02:46]} 12. e5 {[%clk 0:02:25]}  dxe5 {[%clk 0:02:36]} 13. Nxe5 {[%clk 0:02:25]}  Rad8 {[%clk 0:02:32]} 14. Ndc4 {[%clk 0:02:21]}  b5 {[%clk 0:02:27]} 15. Nxd7 {[%clk 0:02:21]}  Nxd7 {[%clk 0:02:25]} 16. Bxg7 {[%clk 0:02:18]}  Kxg7 {[%clk 0:02:25]} 17. Ne3 {[%clk 0:02:17]}  Kg8 {[%clk 0:02:16]} 18. a4 {[%clk 0:02:13]}  a6 {[%clk 0:02:14]} 19. axb5 {[%clk 0:02:12]}  axb5 {[%clk 0:02:15]} 20. Qb2 {[%clk 0:02:13]}  Qe5 {[%clk 0:02:11]} 21. Qxe5 {[%clk 0:02:08]}  Nxe5 {[%clk 0:02:12]} 22. Ra7 {[%clk 0:02:06]}  Bc6 {[%clk 0:02:05]} 23. Nf5 {[%clk 0:01:48]}  Nf3+ {[%clk 0:01:59]} 24. gxf3 {[%clk 0:01:46]}  gxf5 {[%clk 0:01:59]} 25. Re5 {[%clk 0:01:36]}  Bxf3 {[%clk 0:01:56]} 26. Bg2 {[%clk 0:01:30]}  Bd1 {[%clk 0:01:50]} 27. Rxc5 {[%clk 0:01:29]}  f4 {[%clk 0:01:39]} 28. Be4 {[%clk 0:01:20]}  f5 {[%clk 0:01:25]} 29. Rcc7 {[%clk 0:01:16]}  Rf6 {[%clk 0:01:16]} 30. Rg7+ {[%clk 0:01:16]}  Kf8 {[%clk 0:01:16]} 31. Bc6 {[%clk 0:01:00]}  Rg6+ {[%clk 0:01:00]} 32. Rxg6 {[%clk 0:01:00]}  hxg6 {[%clk 0:01:01]} 33. Bxb5 {[%clk 0:00:51]}  Bxc2 {[%clk 0:01:00]} 34. Bc4 {[%clk 0:00:50]}  Rd6 {[%clk 0:00:59]} 35. Kg2 {[%clk 0:00:47]}  Bxd3 {[%clk 0:00:58]} 36. Kf3 {[%clk 0:00:38]}  g5 {[%clk 0:00:55]} 37. h4 {[%clk 0:00:30]}  Be4+ {[%clk 0:00:52]} 38. Ke2 {[%clk 0:00:29]}  g4 {[%clk 0:00:52]} 39. h5 {[%clk 0:00:28]}  Kg8 {[%clk 0:00:44]} 40. h6 {[%clk 0:00:24]}  Kh8 {[%clk 0:00:44]} 41. Ke1 {[%clk 0:00:10]}  g3 {[%clk 0:00:42]} 42. fxg3 {[%clk 0:00:08]}  fxg3 {[%clk 0:00:43]} 43. Rg7 {[%clk 0:00:08]}  f4 {[%clk 0:00:37]} 44. Rg4 {[%clk 0:00:07]}  e5 {[%clk 0:00:26]} 45. Rg7 {[%clk 0:00:02]}  Rxh6 {[%clk 0:00:24]} 46. Re7 {[%clk 0:00:01]}  Rh1+ {[%clk 0:00:23]} 47. Ke2 {[%clk 0:00:01]}  f3+ {[%clk 0:00:21]} 48. Ke3 {[%clk 0:00:01]}  Re1+ {[%clk 0:00:19]} 49. Kd2 {[%clk 0:00:00]}  f2 {[%clk 0:00:14]} 0-1


[Site "https://www.chess.com"]

[Event "Titled Tuesday Blitz August 22 Late 2023"]
[White "Ozkan, Taha"]
[Black "tomobeast"]
[WhiteFideId "34577173"]
[WhiteElo "2518"]
[BlackElo "2220"]
[Result "1-0"]
[Round "5"]
[TimeControl "180+1"]
[Date "2023.08.22"]
[WhiteClock "0:02:04"]
[BlackClock "0:00:04"]
[Board "128"]

1. d4 {[%clk 0:03:00]}  d5 {[%clk 0:01:51]} 2. c4 {[%clk 0:02:57]}  e6 {[%clk 0:01:51]} 3. Nc3 {[%clk 0:02:56]}  c6 {[%clk 0:01:50]} 4. cxd5 {[%clk 0:02:54]}  exd5 {[%clk 0:01:47]} 5. Qc2 {[%clk 0:02:54]}  Nf6 {[%clk 0:01:44]} 6. Bg5 {[%clk 0:02:51]}  g6 {[%clk 0:01:39]} 7. e3 {[%clk 0:02:50]}  Bf5 {[%clk 0:01:35]} 8. Bd3 {[%clk 0:02:50]}  Bxd3 {[%clk 0:01:35]} 9. Qxd3 {[%clk 0:02:51]}  Bg7 {[%clk 0:01:33]} 10. Nf3 {[%clk 0:02:51]}  O-O {[%clk 0:01:32]} 11. O-O {[%clk 0:02:50]}  Nbd7 {[%clk 0:01:28]} 12. b4 {[%clk 0:02:50]}  a6 {[%clk 0:01:21]} 13. a4 {[%clk 0:02:48]}  b5 {[%clk 0:01:16]} 14. Rfc1 {[%clk 0:02:45]}  Nb6 {[%clk 0:01:16]} 15. Ne5 {[%clk 0:02:44]}  Qe8 {[%clk 0:01:09]} 16. axb5 {[%clk 0:02:40]}  axb5 {[%clk 0:01:10]} 17. Rxa8 {[%clk 0:02:39]}  Qxa8 {[%clk 0:01:11]} 18. Qd1 {[%clk 0:02:31]}  Nc4 {[%clk 0:01:03]} 19. Ra1 {[%clk 0:02:31]}  Qb7 {[%clk 0:01:02]} 20. Nd3 {[%clk 0:02:31]}  Nd7 {[%clk 0:01:01]} 21. Be7 {[%clk 0:02:29]}  Ra8 {[%clk 0:01:00]} 22. Bc5 {[%clk 0:02:29]}  Bf8 {[%clk 0:00:56]} 23. Bxf8 {[%clk 0:02:29]}  Kxf8 {[%clk 0:00:57]} 24. Qb1 {[%clk 0:02:26]}  Ke7 {[%clk 0:00:54]} 25. Ra2 {[%clk 0:02:26]}  Rxa2 {[%clk 0:00:52]} 26. Qxa2 {[%clk 0:02:26]}  Ncb6 {[%clk 0:00:49]} 27. Qa5 {[%clk 0:02:25]}  Nc4 {[%clk 0:00:44]} 28. Qa2 {[%clk 0:02:24]}  Ncb6 {[%clk 0:00:44]} 29. Ne2 {[%clk 0:02:23]}  Qa8 {[%clk 0:00:43]} 30. Qxa8 {[%clk 0:02:22]}  Nxa8 {[%clk 0:00:43]} 31. Kf1 {[%clk 0:02:23]}  Nc7 {[%clk 0:00:38]} 32. Ke1 {[%clk 0:02:23]}  Ne6 {[%clk 0:00:38]} 33. Kd2 {[%clk 0:02:24]}  Kd6 {[%clk 0:00:38]} 34. Kc3 {[%clk 0:02:24]}  Nb6 {[%clk 0:00:38]} 35. Nc5 {[%clk 0:02:22]}  Nc4 {[%clk 0:00:36]} 36. Nxe6 {[%clk 0:02:21]}  fxe6 {[%clk 0:00:35]} 37. Nf4 {[%clk 0:02:21]}  e5 {[%clk 0:00:34]} 38. dxe5+ {[%clk 0:02:22]}  Kxe5 {[%clk 0:00:34]} 39. Nd3+ {[%clk 0:02:22]}  Kd6 {[%clk 0:00:32]} 40. Kd4 {[%clk 0:02:21]}  Nd2 {[%clk 0:00:28]} 41. Nc5 {[%clk 0:02:22]}  Nf1 {[%clk 0:00:26]} 42. Kd3 {[%clk 0:02:16]}  Nxh2 {[%clk 0:00:25]} 43. f3 {[%clk 0:02:16]}  Nf1 {[%clk 0:00:25]} 44. Nb7+ {[%clk 0:02:10]}  Kc7 {[%clk 0:00:24]} 45. Nc5 {[%clk 0:02:11]}  Ng3 {[%clk 0:00:23]} 46. Ne6+ {[%clk 0:02:10]}  Kd6 {[%clk 0:00:23]} 47. Nf8 {[%clk 0:02:11]}  Ke7 {[%clk 0:00:18]} 48. Nxh7 {[%clk 0:02:11]}  Kf7 {[%clk 0:00:18]} 49. Ng5+ {[%clk 0:02:12]}  Kf6 {[%clk 0:00:19]} 50. Nh3 {[%clk 0:02:11]}  Nf5 {[%clk 0:00:18]} 51. Nf2 {[%clk 0:02:11]}  Ke6 {[%clk 0:00:18]} 52. e4 {[%clk 0:02:11]}  Ne7 {[%clk 0:00:18]} 53. Kd4 {[%clk 0:02:10]}  Kd6 {[%clk 0:00:17]} 54. e5+ {[%clk 0:02:07]}  Ke6 {[%clk 0:00:17]} 55. g4 {[%clk 0:02:08]}  g5 {[%clk 0:00:16]} 56. Nh3 {[%clk 0:02:07]}  Ng6 {[%clk 0:00:16]} 57. Nxg5+ {[%clk 0:02:08]}  Ke7 {[%clk 0:00:17]} 58. Kc5 {[%clk 0:02:07]}  Nf4 {[%clk 0:00:18]} 59. Kxc6 {[%clk 0:02:06]}  d4 {[%clk 0:00:18]} 60. Kxb5 {[%clk 0:02:07]}  d3 {[%clk 0:00:18]} 61. Ne4 {[%clk 0:02:08]}  Ne6 {[%clk 0:00:12]} 62. Kc4 {[%clk 0:02:07]}  Ng5 {[%clk 0:00:12]} 63. Nd2 {[%clk 0:02:04]}  Ke6 {[%clk 0:00:07]} 64. Kxd3 {[%clk 0:02:04]}  Kxe5 {[%clk 0:00:08]} 65. Ke3 {[%clk 0:02:04]}  Ne6 {[%clk 0:00:07]} 66. b5 {[%clk 0:02:03]}  Nf4 {[%clk 0:00:08]} 67. Nc4+ {[%clk 0:02:02]}  Kd5 {[%clk 0:00:08]} 68. Kxf4 {[%clk 0:02:03]}  Kxc4 {[%clk 0:00:04]} 69. g5 {[%clk 0:02:04]} 1-0


[Site "https://www.chess.com"]